bitfinex-derivatives/quotes_BTCF0:USTF0_20260118
["timestamp","ask_amount","ask_price","bid_price","bid_amount"]
[1768765771283,0.00230598,95404.0,95394.0,0.20224458]
[1768765771484,0.010483,95418.0,95399.0,0.20224458]
[1768765771683,0.02406306,95417.0,95401.0,0.20224458]
[1768765771886,0.11846306,95416.0,95404.0,0.1113641]
[1768765772185,0.02406306,95415.0,95403.0,0.09088048]
[1768765772379,0.02406306,95415.0,95404.0,0.1113641]
[1768765772579,0.0418261,95442.0,95407.0,0.09088048]
[1768765772786,0.0944,95423.0,95412.0,0.1113641]
[1768765773382,0.0944,95423.0,95406.0,0.010485]
[1768765773383,0.0944,95423.0,95414.0,0.1113641]
[1768765773586,0.0944,95423.0,95415.0,0.09088048]
[1768765773791,0.0944,95423.0,95412.0,0.1113641]
[1768765774888,0.0944,95423.0,95409.0,0.20224458]
[1768765776291,0.0944,95423.0,95410.0,0.1113641]
[1768765778495,0.0944,95423.0,95411.0,0.010484]
[1768765778895,0.10453285,95421.0,95411.0,0.010484]
[1768765783008,0.0944,95423.0,95411.0,0.010484]
[1768765784009,0.0944,95423.0,95413.0,0.11697438]
[1768765784305,0.0944,95429.0,95413.0,0.11697438]
[1768765784693,0.0944,95429.0,95413.0,0.12745838]
[1768765785609,0.0944,95429.0,95418.0,0.09400409]
[1768765786109,0.10453285,95430.0,95418.0,0.09400409]
[1768765786602,0.10453285,95430.0,95419.0,0.010483]
[1768765786799,0.10453285,95430.0,95418.0,0.09400409]
[1768765789914,0.10453285,95430.0,95415.0,0.12745838]
[1768765792021,0.10453285,95430.0,95415.0,0.11697438]
[1768765792220,0.10453285,95430.0,95412.0,0.22146247]
[1768765792511,0.10453285,95430.0,95413.0,0.11456321]
[1768765794611,0.10453285,95430.0,95412.0,0.09400409]
[1768765794908,0.11979084,95430.0,95412.0,0.09400409]
[1768765795113,0.10453285,95422.0,95409.0,0.09436]
[1768765795304,0.02573999,95427.0,95410.0,0.010484]
[1768765795500,0.10453285,95420.0,95410.0,0.010484]
[1768765796515,0.02573999,95427.0,95410.0,0.010484]
[1768765797019,0.01525799,95427.0,95410.0,0.010484]
[1768765798018,0.09488348,95429.0,95410.0,0.010484]
[1768765798221,0.010482,95428.0,95410.0,0.010484]
[1768765800316,0.010482,95428.0,95412.0,0.010484]
[1768765800517,0.09488348,95429.0,95412.0,0.010484]
[1768765801615,0.09488348,95429.0,95414.0,0.010484]
[1768765802618,0.010482,95429.0,95414.0,0.010484]
[1768765806025,0.010482,95429.0,95411.0,0.010484]
[1768765807726,0.10453285,95430.0,95415.0,0.010484]
[1768765807930,0.02382449,95429.0,95415.0,0.010484]
[1768765808129,0.10453285,95430.0,95415.0,0.010484]
[1768765808423,0.02382472,95429.0,95415.0,0.010484]
[1768765808624,0.10453285,95430.0,95415.0,0.010484]
[1768765808827,0.02382554,95429.0,95415.0,0.010484]
[1768765809025,0.10453285,95430.0,95415.0,0.010484]
[1768765809326,0.02382546,95429.0,95415.0,0.010484]
[1768765809526,0.10453285,95430.0,95415.0,0.010484]
[1768765809728,0.02382625,95429.0,95415.0,0.010484]
[1768765809928,0.10453285,95430.0,95415.0,0.010484]
[1768765810227,0.02382625,95429.0,95415.0,0.010484]
[1768765810432,0.10453285,95430.0,95415.0,0.010484]
[1768765810628,0.02382744,95429.0,95415.0,0.010484]
[1768765810927,0.10453285,95430.0,95415.0,0.010484]
[1768765811128,0.02382751,95429.0,95415.0,0.010484]
[1768765811327,0.02382751,95428.0,95415.0,0.010484]
[1768765811627,0.10453285,95430.0,95415.0,0.010484]
[1768765811826,0.0238289,95429.0,95415.0,0.010484]
[1768765812026,0.0238289,95428.0,95415.0,0.010484]
[1768765812229,0.10453285,95430.0,95415.0,0.010484]
[1768765812427,0.02378121,95429.0,95415.0,0.010484]
[1768765812627,0.02378121,95428.0,95415.0,0.010484]
[1768765812830,0.10453285,95430.0,95415.0,0.010484]
[1768765813031,0.02378119,95429.0,95415.0,0.010484]
[1768765813232,0.02378119,95428.0,95412.0,0.010484]
[1768765813532,0.10453285,95430.0,95412.0,0.010484]
[1768765813732,0.02378242,95429.0,95412.0,0.010484]
[1768765813929,0.02378242,95428.0,95412.0,0.010484]
[1768765814130,0.10453285,95430.0,95412.0,0.010484]
[1768765814332,0.0237823,95429.0,95412.0,0.010484]
[1768765814529,0.0342643,95428.0,95412.0,0.010484]
[1768765814729,0.010482,95428.0,95412.0,0.010484]
[1768765815332,0.02379042,95427.0,95412.0,0.010484]
[1768765815636,0.010482,95428.0,95412.0,0.010484]
[1768765815841,0.02379038,95427.0,95412.0,0.010484]
[1768765816130,0.010482,95428.0,95412.0,0.010484]
[1768765816331,0.02379043,95427.0,95412.0,0.010484]
[1768765816532,0.010482,95428.0,95412.0,0.010484]
[1768765816734,0.02379045,95427.0,95412.0,0.010484]
[1768765817033,0.010482,95428.0,95412.0,0.010484]
[1768765817222,0.02379048,95427.0,95412.0,0.010484]
[1768765817423,0.010482,95428.0,95412.0,0.010484]
[1768765817626,0.010483,95426.0,95410.0,0.31120967]
[1768765820033,0.010483,95426.0,95411.0,0.010484]
[1768765820233,0.010482,95429.0,95411.0,0.010484]
[1768765820431,0.02379087,95428.0,95411.0,0.010484]
[1768765820626,0.02379087,95427.0,95411.0,0.010484]
[1768765820829,0.010482,95429.0,95411.0,0.010484]
[1768765821027,0.02379096,95428.0,95411.0,0.010484]
[1768765821227,0.02379096,95427.0,95411.0,0.010484]
[1768765821434,0.010482,95429.0,95411.0,0.010484]
[1768765821730,0.02379121,95428.0,95411.0,0.010484]
[1768765821937,0.03427321,95427.0,95411.0,0.010484]
[1768765822237,0.010482,95427.0,95411.0,0.010484]
[1768765825234,0.010483,95424.0,95410.0,0.20667682]
[1768765826437,0.010482,95428.0,95410.0,0.20667682]
[1768765826735,0.010482,95426.0,95410.0,0.20667682]
[1768765830944,0.010482,95426.0,95411.0,0.11055126]
[1768765835455,0.010482,95426.0,95411.0,0.20789854]
[1768765835752,0.10453285,95430.0,95412.0,0.11055126]
[1768765835941,0.02379161,95429.0,95412.0,0.11055126]
[1768765836143,0.10453285,95430.0,95412.0,0.11055126]
[1768765836340,0.0237916,95429.0,95412.0,0.11055126]
[1768765836547,0.010482,95426.0,95412.0,0.11055126]
[1768765836751,0.10453285,95430.0,95412.0,0.11055126]
[1768765837050,0.0237916,95429.0,95412.0,0.11055126]
[1768765837252,0.0237916,95428.0,95412.0,0.11055126]
[1768765837458,0.010482,95426.0,95412.0,0.11055126]
[1768765838356,0.10453285,95430.0,95412.0,0.11055126]
[1768765838557,0.010482,95426.0,95412.0,0.11055126]
[1768765838863,0.20290294,95434.0,95412.0,0.11055126]
[1768765839053,0.02379168,95433.0,95412.0,0.20314104]
[1768765839254,0.02379168,95432.0,95413.0,0.10992492]
[1768765839456,0.02379168,95431.0,95413.0,0.10992492]
[1768765839663,0.02379168,95430.0,95413.0,0.10992492]
[1768765839862,0.02379168,95429.0,95413.0,0.10992492]
[1768765840057,0.02379168,95428.0,95413.0,0.10992492]
[1768765840258,0.02379168,95427.0,95413.0,0.10992492]
[1768765840453,0.010482,95428.0,95413.0,0.10992492]
[1768765840665,0.02379185,95427.0,95413.0,0.10992492]
[1768765840961,0.010482,95428.0,95413.0,0.10992492]
[1768765841161,0.02379185,95427.0,95413.0,0.10992492]
[1768765841363,0.20290294,95434.0,95413.0,0.10992492]
[1768765841562,0.010482,95428.0,95413.0,0.10992492]
[1768765841762,0.02379191,95427.0,95413.0,0.10992492]
[1768765841960,0.01361494,95424.0,95402.0,0.10992492]
[1768765842165,0.010483,95424.0,95405.0,0.2025147]
[1768765842465,0.010483,95424.0,95407.0,0.10992492]
[1768765842663,0.010483,95424.0,95407.0,0.2025147]
[1768765842866,0.010483,95424.0,95408.0,0.10992492]
[1768765843462,0.010483,95422.0,95407.0,0.2025147]
[1768765843767,0.010483,95422.0,95409.0,0.10992492]
[1768765846164,0.010483,95419.0,95409.0,0.10992492]
[1768765848470,0.09194818,95428.0,95409.0,0.10992492]
[1768765848661,0.010483,95421.0,95409.0,0.10992492]
[1768765859183,0.010483,95421.0,95409.0,0.20466503]
[1768765862887,0.010483,95419.0,95409.0,0.20466503]
[1768765864385,0.010483,95419.0,95410.0,0.10846357]
[1768765866090,0.09436,95428.0,95411.0,0.20320368]
[1768765866290,0.02324449,95427.0,95412.0,0.10846357]
[1768765866591,0.02324449,95426.0,95412.0,0.10846357]
[1768765866784,0.010483,95423.0,95412.0,0.10846357]
[1768765869595,0.09436,95428.0,95412.0,0.10846357]
[1768765869786,0.02324659,95427.0,95412.0,0.10846357]
[1768765869987,0.02324659,95426.0,95412.0,0.10846357]
[1768765870190,0.010483,95420.0,95412.0,0.10846357]
[1768765872394,0.09436,95428.0,95412.0,0.10846357]
[1768765872592,0.02326794,95427.0,95412.0,0.10846357]
[1768765872793,0.02326794,95426.0,95412.0,0.10846357]
[1768765872993,0.02326794,95425.0,95412.0,0.10846357]
[1768765873186,0.09436,95428.0,95412.0,0.10846357]
[1768765873392,0.010483,95421.0,95412.0,0.10846357]
[1768765874086,0.010483,95424.0,95412.0,0.10846357]
[1768765875591,0.010483,95420.0,95411.0,0.09474011]
[1768765875790,0.010484,95417.0,95396.0,0.0858425]
[1768765875997,0.010484,95417.0,95397.0,0.09436]
[1768765876197,0.010484,95417.0,95397.0,0.19916202]
[1768765876494,0.010484,95417.0,95398.0,0.010485]
[1768765877295,0.010484,95417.0,95399.0,0.10481411]
[1768765877897,0.010484,95417.0,95401.0,0.20320368]
[1768765878497,0.1117422,95428.0,95405.0,0.20320368]
[1768765878694,0.02327051,95427.0,95408.0,0.10846357]
[1768765878893,0.02327051,95426.0,95409.0,0.10846357]
[1768765879089,0.02327051,95425.0,95409.0,0.10846357]
[1768765879298,0.09436,95428.0,95409.0,0.10846357]
[1768765879497,0.010483,95420.0,95409.0,0.10846357]
[1768765880405,0.010483,95418.0,95409.0,0.10846357]
[1768765884101,0.09436,95428.0,95409.0,0.10846357]
[1768765884304,0.010484,95416.0,95409.0,0.10846357]
[1768765884695,0.010484,95414.0,95410.0,0.09371944]
[1768765887405,0.010484,95414.0,95410.0,0.07560844]
[1768765888707,0.09436,95421.0,95410.0,0.06963544]
[1768765893712,0.09436,95421.0,95408.0,0.11606124]
[1768765897921,0.09436,95421.0,95405.0,0.09371944]
[1768765898326,0.09436,95421.0,95406.0,0.10877127]
[1768765900924,0.10454716,95420.0,95406.0,0.10877127]
[1768765904724,0.09436,95421.0,95406.0,0.10877127]
[1768765905024,0.10454716,95420.0,95406.0,0.10877127]
[1768765907426,0.10454716,95416.0,95406.0,0.10877127]
[1768765907825,0.09436,95421.0,95406.0,0.10877127]
[1768765908126,0.10454716,95416.0,95406.0,0.10877127]
[1768765915831,0.10454716,95416.0,95401.0,0.1124679]
[1768765916030,0.10454716,95411.0,95401.0,0.1124679]
[1768765922936,0.10454716,95411.0,95395.0,0.1124679]
[1768765923244,0.10454716,95405.0,95395.0,0.1124679]
[1768765923434,0.10454716,95405.0,95391.0,0.1878244]
[1768765923633,0.10454716,95401.0,95392.0,0.1124679]
[1768765923942,0.10454716,95410.0,95392.0,0.1124679]
[1768765927339,0.10454716,95402.0,95389.0,0.09666636]
[1768765927642,0.10454716,95400.0,95389.0,0.20913426]
[1768765927838,0.10454716,95400.0,95389.0,0.00230636]
[1768765933346,0.010485,95399.0,95389.0,0.00230636]
[1768765933944,0.09925593,95399.0,95384.0,0.00230647]
[1768765934147,0.010486,95393.0,95384.0,0.00230647]
[1768765935048,0.010486,95390.0,95375.0,0.1124679]
[1768765935248,0.11503316,95390.0,95375.0,0.1124679]
[1768765937042,0.010486,95393.0,95375.0,0.1124679]
[1768765937243,0.21207165,95395.0,95376.0,0.1229559]
[1768765937447,0.10454716,95390.0,95376.0,0.1229559]
[1768765937646,0.09925593,95395.0,95376.0,0.1229559]
[1768765937849,0.10454716,95390.0,95378.0,0.1229559]
[1768765938153,0.09925593,95395.0,95378.0,0.1229559]
[1768765940443,0.09925593,95395.0,95380.0,0.010487]
[1768765942252,0.09925593,95395.0,95378.0,0.1124679]
[1768765943451,0.09925593,95395.0,95381.0,0.010487]
[1768765944143,0.10974193,95395.0,95378.0,0.1124679]
[1768765945452,0.10974193,95395.0,95378.0,0.1229559]
[1768765947256,0.10454716,95390.0,95378.0,0.1229559]
[1768765949243,0.10454716,95390.0,95375.0,0.010488]
[1768765949555,0.10454716,95390.0,95375.0,0.12086346]
[1768765950355,0.10454716,95390.0,95372.0,0.010488]
[1768765950550,0.1978448,95390.0,95372.0,0.010488]
[1768765951058,0.1978448,95390.0,95372.0,0.12086346]
[1768765951247,0.010487,95389.0,95372.0,0.12086346]
[1768765952058,0.10378464,95389.0,95372.0,0.010488]
[1768765954360,0.10378464,95389.0,95371.0,0.11037546]
[1768765954660,0.10378464,95389.0,95372.0,0.10484323]
[1768765956361,0.10378464,95389.0,95372.0,0.21521869]
[1768765956565,0.09329764,95389.0,95374.0,0.010488]
[1768765966062,0.09295179,95379.0,95369.0,0.01961386]
[1768765975876,0.10460222,95390.0,95369.0,0.01961386]
[1768765975877,0.09445256,95377.0,95369.0,0.01961386]
[1768765980072,0.1188081,95382.0,95369.0,0.01961386]
[1768765980267,0.09445256,95382.0,95369.0,0.01961386]
[1768765980472,0.09445256,95381.0,95372.0,0.010488]
[1768765983576,0.18885256,95384.0,95369.0,0.01961386]
[1768765984080,0.30766066,95384.0,95369.0,0.01961386]
[1768765984477,0.09445256,95383.0,95369.0,0.01961386]
[1768765985379,0.09445256,95383.0,95373.0,0.010488]
[1768765985882,0.21326066,95383.0,95373.0,0.010488]
[1768765986479,0.21326066,95381.0,95369.0,0.03010286]
[1768765986982,0.21326066,95381.0,95372.0,0.010488]
[1768765989474,0.21326066,95381.0,95374.0,0.010488]
[1768765993888,0.09445256,95377.0,95364.0,0.07766345]
[1768765994093,0.1188081,95376.0,95365.0,0.010489]
[1768765994482,0.1188081,95376.0,95369.0,0.010489]
[1768765994681,0.1188081,95383.0,95369.0,0.010489]
[1768765995896,0.09445256,95382.0,95369.0,0.010489]
[1768765996087,0.1188081,95381.0,95369.0,0.010489]
[1768765996294,0.1188081,95381.0,95369.0,0.02359511]
[1768765997193,0.21326066,95380.0,95369.0,0.02359511]
[1768765997387,0.1188081,95379.0,95369.0,0.02359511]
[1768766000998,0.1188081,95378.0,95369.0,0.01310611]
[1768766001199,0.1188081,95378.0,95366.0,0.010489]
[1768766002995,0.11950293,95376.0,95364.0,0.00230695]
[1768766003195,0.09353018,95375.0,95364.0,0.00230695]
[1768766003802,0.11950293,95374.0,95364.0,0.00230695]
[1768766005697,0.11950293,95374.0,95364.0,0.01561385]
[1768766009904,0.09353018,95375.0,95364.0,0.01561385]
[1768766010103,0.21303311,95375.0,95364.0,0.01561385]
[1768766010406,0.11950293,95374.0,95364.0,0.01561385]
[1768766012607,0.11950293,95372.0,95364.0,0.01561385]
[1768766014705,0.21303311,95371.0,95364.0,0.01561385]
[1768766015012,0.010488,95377.0,95360.0,0.08600651]
[1768766015398,0.010488,95377.0,95361.0,0.10485697]
[1768766016107,0.010488,95380.0,95362.0,0.01049]
[1768766016811,0.21039806,95379.0,95362.0,0.01049]
[1768766017110,0.1178125,95375.0,95362.0,0.01049]
[1768766023813,0.21039806,95375.0,95362.0,0.01049]
[1768766024516,0.1178125,95374.0,95362.0,0.01049]
[1768766027921,0.09258556,95375.0,95362.0,0.01049]
[1768766028223,0.1178125,95374.0,95362.0,0.01049]
[1768766030221,0.21039806,95374.0,95362.0,0.01049]
[1768766030611,0.1178125,95373.0,95362.0,0.01049]
[1768766032522,0.11358562,95372.0,95362.0,0.01049]
[1768766034023,0.11358562,95372.0,95360.0,0.11810436]
[1768766034523,0.11358562,95372.0,95361.0,0.10485807]
[1768766037224,0.11358562,95371.0,95361.0,0.10485807]
[1768766045032,0.09247433,95372.0,95361.0,0.10485807]
[1768766047125,0.11358562,95374.0,95361.0,0.10485807]
[1768766062847,0.11401686,95372.0,95361.0,0.10485807]
[1768766064043,0.10463148,95371.0,95361.0,0.10485807]
[1768766064342,0.11401686,95369.0,95351.0,0.010491]
[1768766064547,0.010489,95368.0,95350.0,0.19903148]
[1768766065045,0.010489,95366.0,95350.0,0.19903148]
[1768766065247,0.11401686,95369.0,95350.0,0.0944]
[1768766065845,0.11401686,95369.0,95350.0,0.19903148]
[1768766066532,0.010489,95365.0,95350.0,0.19903148]
[1768766066736,0.010489,95365.0,95350.0,0.21359756]
[1768766067948,0.010489,95365.0,95350.0,0.10896608]
[1768766068149,0.010489,95368.0,95350.0,0.11945708]
[1768766068538,0.12450586,95368.0,95350.0,0.11945708]
[1768766069050,0.010489,95368.0,95350.0,0.22985798]
[1768766069738,0.010489,95368.0,95350.0,0.33448946]
[1768766070350,0.010489,95368.0,95350.0,0.22985798]
[1768766070649,0.010489,95368.0,95350.0,0.33448946]
[1768766071452,0.010489,95368.0,95350.0,0.24008946]
[1768766071654,0.12450586,95368.0,95350.0,0.02505708]
[1768766072045,0.010487,95385.0,95367.0,0.21229997]
[1768766072249,0.0944,95377.0,95370.0,0.10463148]
[1768766072450,0.0944,95381.0,95369.0,0.010489]
[1768766072950,4.7e-07,95384.0,95371.0,0.20181097]
[1768766073154,0.0944,95398.0,95384.0,0.1104009]
[1768766073346,0.00230598,95404.0,95387.0,0.30644245]
[1768766073653,0.00230598,95404.0,95391.0,0.20181097]
[1768766073848,0.00230587,95409.0,95396.0,0.010486]
[1768766074048,0.0944,95416.0,95399.0,0.1104009]
[1768766074256,0.02403033,95415.0,95399.0,0.1104009]
[1768766074554,0.02403033,95414.0,95399.0,0.1104009]
[1768766074751,0.104884,95416.0,95399.0,0.1104009]
[1768766074950,0.02389717,95415.0,95400.0,0.09141007]
[1768766075151,0.0944,95416.0,95401.0,0.1104009]
[1768766075451,0.0944,95416.0,95401.0,0.20181097]
[1768766076057,0.104884,95416.0,95401.0,0.20181097]
[1768766078559,0.104884,95416.0,95402.0,0.10910436]
[1768766079159,0.0944,95416.0,95402.0,0.10910436]
[1768766088965,0.010484,95417.0,95402.0,0.10910436]
[1768766096168,0.010484,95417.0,95402.0,0.20096825]
[1768766100664,0.010484,95417.0,95403.0,0.11309823]
[1768766101369,0.010484,95417.0,95404.0,0.20496212]
[1768766101669,0.0944,95426.0,95414.0,0.11309823]
[1768766101869,0.0944,95426.0,95418.0,0.20496212]
[1768766102067,0.0944,95426.0,95419.0,0.20496212]
[1768766102765,0.0944,95426.0,95419.0,0.09186389]
[1768766103163,0.104882,95426.0,95413.0,0.00015728]
[1768766103366,0.104882,95426.0,95414.0,0.11309823]
[1768766105870,0.104882,95426.0,95413.0,0.09202117]
[1768766111377,0.010482,95429.0,95413.0,0.00015728]
[1768766112982,0.010483,95426.0,95413.0,0.00015728]
[1768766114878,0.010482,95430.0,95413.0,0.00015728]
[1768766116978,0.010482,95428.0,95413.0,0.00015728]
[1768766117682,0.010482,95427.0,95413.0,0.00015728]
[1768766119981,0.010483,95425.0,95413.0,0.00015728]
[1768766120388,0.010483,95422.0,95413.0,0.00015728]
[1768766120683,0.11253218,95428.0,95413.0,0.00015728]
[1768766121383,0.010483,95421.0,95413.0,0.00015728]
[1768766122981,0.010482,95429.0,95413.0,0.20468469]
[1768766123181,0.010483,95423.0,95413.0,0.00015728]
[1768766124079,0.010483,95420.0,95413.0,0.00015728]
[1768766124390,0.12654689,95416.0,95404.0,0.09436]
[1768766124882,0.010484,95416.0,95404.0,0.09436]
[1768766125085,0.010483,95419.0,95404.0,0.09436]
[1768766126080,0.12654689,95417.0,95397.0,0.010486]
[1768766126286,0.12654689,95417.0,95399.0,0.09436]
[1768766126682,0.010484,95417.0,95399.0,0.29888741]
[1768766127077,0.010484,95417.0,95400.0,0.20452741]
[1768766127386,0.010484,95417.0,95401.0,0.10971722]
[1768766127688,0.010484,95417.0,95401.0,0.20452741]
[1768766128088,0.010484,95417.0,95402.0,0.10971722]
[1768766129496,0.010483,95420.0,95402.0,0.20452741]
[1768766131401,0.010483,95420.0,95403.0,0.10971722]
[1768766132698,0.010483,95418.0,95403.0,0.10971722]
[1768766133603,0.010483,95418.0,95403.0,0.20452741]
[1768766134105,0.010483,95418.0,95404.0,0.10971722]
[1768766137100,0.010484,95416.0,95404.0,0.10971722]
[1768766137609,0.010484,95416.0,95399.0,0.09436]
[1768766137806,0.010484,95416.0,95399.0,0.31145708]
[1768766138012,0.010484,95416.0,95400.0,0.21709708]
[1768766138206,0.010484,95416.0,95401.0,0.21709708]
[1768766138407,0.010484,95416.0,95402.0,0.21709708]
[1768766138612,0.010484,95416.0,95403.0,0.21709708]
[1768766138810,0.010484,95414.0,95405.0,0.21709708]
[1768766141612,0.010484,95417.0,95405.0,0.21709708]
[1768766144610,0.010484,95417.0,95407.0,0.11803261]
[1768766144817,0.010484,95417.0,95407.0,0.21709708]
[1768766146017,0.010484,95415.0,95403.0,0.11803261]
[1768766146220,0.010484,95415.0,95403.0,0.21709708]
[1768766146622,0.010484,95415.0,95405.0,0.21709708]
[1768766146922,0.010485,95408.0,95397.0,0.07540415]
[1768766147122,0.010485,95408.0,95394.0,0.21239261]
[1768766147325,0.010485,95408.0,95395.0,0.11803261]
[1768766147525,0.10454071,95410.0,95395.0,0.21709708]
[1768766147720,0.10454071,95410.0,95396.0,0.21709708]
[1768766147927,0.10454071,95410.0,95397.0,0.11803261]
[1768766149625,0.10454071,95410.0,95397.0,0.21709708]
[1768766149928,0.010484,95412.0,95398.0,0.21709708]
[1768766150928,0.010484,95412.0,95399.0,0.11803261]
[1768766151630,0.010484,95409.0,95399.0,0.11803261]
[1768766153229,0.10454071,95410.0,95399.0,0.11803261]
[1768766154931,0.11502471,95410.0,95399.0,0.11803261]
[1768766161738,0.010485,95408.0,95399.0,0.11803261]
[1768766162642,0.010484,95411.0,95399.0,0.11803261]
[1768766163039,0.010484,95411.0,95399.0,0.2094878]
[1768766163239,0.010484,95411.0,95400.0,0.20664017]
[1768766163440,0.010484,95411.0,95401.0,0.11518498]
[1768766165343,0.010484,95414.0,95401.0,0.11518498]
[1768766165748,0.010484,95414.0,95402.0,0.11518498]
[1768766169850,0.010484,95414.0,95402.0,0.20664017]
[1768766171548,0.09436,95416.0,95404.0,0.20664017]
[1768766171749,0.09436,95416.0,95408.0,0.11518498]
[1768766172146,0.09436,95416.0,95407.0,0.09145519]
[1768766172352,0.010484,95415.0,95407.0,0.09145519]
[1768766172550,0.010484,95415.0,95400.0,0.11518498]
[1768766173355,0.010484,95415.0,95401.0,0.09145519]
[1768766173654,0.010484,95412.0,95402.0,0.11518498]
[1768766174057,0.010484,95412.0,95402.0,0.20664017]
[1768766174549,0.010484,95415.0,95402.0,0.20664017]
[1768766174756,0.010484,95415.0,95403.0,0.11518498]
[1768766177049,0.010484,95415.0,95403.0,0.20664017]
[1768766181160,0.010484,95415.0,95404.0,0.11518498]
[1768766181560,0.09436,95416.0,95404.0,0.11518498]
[1768766183251,0.09436,95416.0,95404.0,0.09613795]
[1768766183456,0.010484,95415.0,95405.0,0.2116383]
[1768766185769,0.09436,95416.0,95405.0,0.2116383]
[1768766186465,0.104843,95418.0,95409.0,0.2116383]
[1768766186665,0.104843,95418.0,95410.0,0.11550035]
[1768766187273,0.104843,95418.0,95409.0,0.09613795]
[1768766188066,0.09436,95418.0,95409.0,0.09613795]
[1768766188369,0.09436,95420.0,95411.0,0.2116383]
[1768766189367,0.19890071,95421.0,95413.0,0.09613795]
[1768766189570,0.09436,95421.0,95413.0,0.09613795]
[1768766190372,0.09436,95425.0,95417.0,0.11550035]
[1768766190567,0.09436,95427.0,95418.0,0.11550035]
[1768766191070,0.09436,95427.0,95419.0,0.11550035]
[1768766191271,0.10454071,95430.0,95420.0,0.11550035]
[1768766191570,0.02293517,95429.0,95420.0,0.11550035]
[1768766191756,0.02293517,95428.0,95420.0,0.11550035]
[1768766191954,0.10454071,95430.0,95420.0,0.11550035]
[1768766192159,0.0229356,95429.0,95420.0,0.11550035]
[1768766192364,0.10454071,95430.0,95420.0,0.11550035]
[1768766193375,0.10454071,95430.0,95420.0,0.01640303]
[1768766193563,0.10454071,95430.0,95419.0,0.09613795]
[1768766194778,0.010482,95429.0,95419.0,0.09613795]
[1768766197876,0.010482,95429.0,95419.0,0.1121426]
[1768766214280,0.010482,95427.0,95419.0,0.1121426]
[1768766215785,0.010482,95430.0,95419.0,0.1121426]
[1768766217291,0.02291266,95429.0,95419.0,0.1121426]
[1768766217489,0.010482,95430.0,95419.0,0.1121426]
[1768766217683,0.02291266,95429.0,95419.0,0.1121426]
[1768766217883,0.010482,95430.0,95419.0,0.1121426]
[1768766218086,0.02291264,95429.0,95419.0,0.1121426]
[1768766218379,0.010482,95430.0,95419.0,0.1121426]
[1768766218578,0.02291748,95429.0,95419.0,0.1121426]
[1768766218785,0.010482,95430.0,95419.0,0.1121426]
[1768766218980,0.02291748,95429.0,95419.0,0.1121426]
[1768766219285,0.03340464,95428.0,95419.0,0.1121426]
[1768766219487,0.010482,95428.0,95419.0,0.1121426]
[1768766224592,0.104842,95431.0,95419.0,0.2277466]
[1768766224794,0.0229257,95430.0,95419.0,0.2277466]
[1768766224996,0.0229257,95429.0,95419.0,0.2277466]
[1768766225293,0.0334077,95428.0,95419.0,0.2277466]
[1768766225494,0.010482,95428.0,95419.0,0.2277466]
[1768766226392,0.010482,95430.0,95419.0,0.2277466]
[1768766226591,0.02292549,95429.0,95419.0,0.2277466]
[1768766226791,0.02292549,95428.0,95419.0,0.2277466]
[1768766226993,0.010482,95430.0,95419.0,0.2277466]
[1768766227192,0.02292552,95429.0,95419.0,0.2277466]
[1768766227392,0.02292552,95428.0,95419.0,0.2277466]
[1768766227594,0.010482,95430.0,95419.0,0.2277466]
[1768766227784,0.02292554,95429.0,95419.0,0.2277466]
[1768766227980,0.02292554,95428.0,95419.0,0.2277466]
[1768766228184,0.010482,95430.0,95419.0,0.2277466]
[1768766228486,0.02292553,95429.0,95419.0,0.2277466]
[1768766228684,0.02292553,95428.0,95419.0,0.2277466]
[1768766228886,0.010482,95430.0,95419.0,0.2277466]
[1768766229085,0.0229255,95429.0,95419.0,0.2277466]
[1768766229286,0.0229255,95428.0,95419.0,0.2277466]
[1768766229486,0.010482,95430.0,95419.0,0.2277466]
[1768766229685,0.02292546,95429.0,95419.0,0.2277466]
[1768766229889,0.02292546,95428.0,95419.0,0.2277466]
[1768766230086,0.010482,95430.0,95419.0,0.2277466]
[1768766230286,0.02292549,95429.0,95419.0,0.2277466]
[1768766230487,0.02292549,95428.0,95419.0,0.2277466]
[1768766230698,0.010482,95430.0,95419.0,0.2277466]
[1768766231096,0.02292551,95429.0,95419.0,0.2277466]
[1768766231299,0.02292551,95428.0,95419.0,0.2277466]
[1768766231595,0.010482,95430.0,95419.0,0.2277466]
[1768766231789,0.02292558,95429.0,95419.0,0.2277466]
[1768766231990,0.010482,95430.0,95419.0,0.2277466]
[1768766231991,0.02292558,95428.0,95419.0,0.2277466]
[1768766232189,0.010482,95430.0,95419.0,0.2277466]
[1768766232390,0.02277981,95429.0,95419.0,0.2277466]
[1768766232600,0.02277981,95428.0,95419.0,0.2277466]
[1768766232799,0.010482,95430.0,95419.0,0.2277466]
[1768766232999,0.02277981,95429.0,95419.0,0.2277466]
[1768766233200,0.02277981,95428.0,95419.0,0.2277466]
[1768766233498,0.010482,95430.0,95419.0,0.2277466]
[1768766233700,0.0227799,95429.0,95419.0,0.2277466]
[1768766233999,0.0227799,95428.0,95419.0,0.2277466]
[1768766234200,0.010482,95430.0,95419.0,0.2277466]
[1768766234399,0.02277996,95429.0,95419.0,0.2277466]
[1768766234600,0.02277996,95428.0,95419.0,0.2277466]
[1768766234799,0.010482,95430.0,95419.0,0.2277466]
[1768766235000,0.02277994,95429.0,95419.0,0.2277466]
[1768766235201,0.02277994,95428.0,95419.0,0.2277466]
[1768766235498,0.010482,95430.0,95419.0,0.2277466]
[1768766235702,0.02278088,95429.0,95419.0,0.2277466]
[1768766235902,0.02278088,95428.0,95419.0,0.2277466]
[1768766236198,0.010482,95430.0,95419.0,0.2277466]
[1768766236399,0.02278128,95429.0,95419.0,0.2277466]
[1768766236601,0.02278128,95428.0,95419.0,0.2277466]
[1768766236901,0.010482,95430.0,95419.0,0.2277466]
[1768766237100,0.02278126,95429.0,95419.0,0.2277466]
[1768766237301,0.02278126,95428.0,95419.0,0.2277466]
[1768766237501,0.010482,95430.0,95419.0,0.2277466]
[1768766237703,0.02278145,95429.0,95419.0,0.2277466]
[1768766237893,0.02278145,95428.0,95419.0,0.2277466]
[1768766238093,0.010482,95430.0,95419.0,0.2277466]
[1768766238294,0.02278178,95429.0,95419.0,0.2277466]
[1768766238494,0.02278178,95428.0,95419.0,0.2277466]
[1768766238696,0.010482,95430.0,95419.0,0.2277466]
[1768766238897,0.010483,95426.0,95419.0,0.2277466]
[1768766245612,0.010482,95429.0,95419.0,0.2277466]
[1768766245814,0.02278088,95428.0,95419.0,0.2277466]
[1768766246006,0.02278088,95427.0,95419.0,0.2277466]
[1768766246206,0.010482,95429.0,95419.0,0.2277466]
[1768766246407,0.02278079,95428.0,95419.0,0.2277466]